bitfinex/quotes_ETHUSD_20250217
["timestamp","ask_amount","ask_price","bid_price","bid_amount"]
[1739773315369,0.5693,2681.0,2680.4,3.73072]
[1739773315370,3.5693,2681.0,2680.4,3.73072]
[1739773315587,0.05445699,2680.9,2680.4,3.73072]
[1739773315789,0.05445699,2680.9,2680.8,3.73022]
[1739773316083,0.275,2680.9,2680.8,3.73022]
[1739773316312,0.32945699,2680.9,2680.8,3.73022]
[1739773316448,0.05445699,2680.9,2680.8,3.73022]
[1739773316649,0.276,2680.9,2680.8,8.14218728]
[1739773317681,0.276,2680.9,2680.8,4.555957]
[1739773319211,0.276,2680.9,2680.8,3.73022]
[1739773319705,0.3303391,2680.9,2680.8,3.73022]
[1739773320178,0.3303391,2680.9,2680.6,3.7304]
[1739773320510,0.3303391,2680.9,2680.7,3.73035]
[1739773320869,0.3303391,2680.9,2680.5,3.73056]
[1739773321110,0.3303391,2680.9,2680.3,3.73087]
[1739773321413,0.5693,2680.8,2680.3,3.73087]
[1739773321619,0.5693,2680.8,2680.4,3.73077]
[1739773321775,0.05430282,2680.7,2680.4,3.73077]
[1739773322307,0.05430282,2680.6,2680.4,3.73077]
[1739773322472,0.5693,2680.8,2680.4,3.73077]
[1739773322673,0.05430282,2680.7,2679.9,8.09117028]
[1739773323211,0.05430282,2680.7,2680.6,3.73045]
[1739773323577,0.276,2680.9,2680.8,3.73022]
[1739773324711,0.276,2680.9,2680.8,4.50372]
[1739773328209,0.276,2681.1,2681.0,3.72995]
[1739773328387,0.276,2681.1,2681.0,4.91191503]
[1739773330318,3.0,2681.6,2681.0,1.18196503]
[1739773330516,0.5693,2681.9,2681.5,3.72925]
[1739773330813,0.275,2681.8,2681.4,3.72931]
[1739773331378,3.5693,2681.9,2681.6,3.7291]
[1739773331689,0.275,2681.8,2681.6,3.72904]
[1739773332093,0.05472,2681.7,2681.6,3.72904]
[1739773332416,0.275,2681.8,2681.6,3.72904]
[1739773332638,0.05472,2681.7,2681.6,3.72904]
[1739773332916,0.275,2681.8,2681.6,3.72904]
[1739773333130,0.05472,2681.7,2681.6,3.72904]
[1739773333342,0.275,2681.8,2681.6,3.72904]
[1739773333502,0.05472,2681.7,2681.6,3.72904]
[1739773333817,0.275,2681.8,2681.6,3.72904]
[1739773334023,0.05472,2681.7,2681.6,3.72904]
[1739773334381,0.275,2681.8,2681.5,3.72923]
[1739773334583,0.05472,2681.7,2681.5,3.72923]
[1739773334880,0.275,2681.8,2681.5,3.72923]
[1739773335083,0.05472,2681.7,2681.3,7.4589]
[1739773335425,3.0,2681.5,2680.6,3.73047]
[1739773335726,0.5693,2681.2,2680.6,3.7305]
[1739773336084,0.05489228,2681.1,2680.6,3.73042]
[1739773336383,0.276,2681.0,2680.4,3.73068]
[1739773336598,0.5693,2680.9,2680.1,0.7591]
[1739773336805,0.5693,2680.9,2680.6,3.73048]
[1739773337098,0.05489228,2680.8,2680.6,3.73048]
[1739773337483,0.05489228,2680.8,2680.7,3.73036]
[1739773337889,0.276,2681.0,2680.9,3.73009]
[1739773338144,0.32968598,2681.0,2680.5,3.7306]
[1739773338305,0.32968598,2681.0,2680.6,3.73045]
[1739773338984,0.32968598,2681.0,2680.7,3.73034]
[1739773339423,0.32968598,2681.0,2680.1,4.49017]
[1739773339424,0.32968598,2681.0,2680.3,3.7309]
[1739773339598,0.5693,2680.9,2680.1,3.73111]
[1739773340028,0.5693,2680.7,2680.1,7.46221]
[1739773340387,0.5693,2680.7,2680.2,3.73105]
[1739773340901,0.5693,2680.7,2680.5,3.73052]
[1739773341395,0.5693,2680.7,2680.3,3.73085]
[1739773341613,0.5693,2680.7,2680.5,3.73054]
[1739773342324,0.5693,2680.7,2680.6,3.7305]
[1739773342523,3.0,2681.1,2680.5,3.73054]
[1739773342524,0.5693,2681.1,2680.7,3.73033]
[1739773342737,0.32885834,2681.0,2680.7,3.73033]
[1739773342891,0.32885834,2681.0,2680.9,3.73009]
[1739773343096,0.275,2681.0,2680.8,3.73021]
[1739773344010,0.275,2681.0,2680.8,3.73015]
[1739773344208,0.05153771,2680.9,2680.8,3.73015]
[1739773344414,0.05153771,2680.9,2680.7,3.73035]
[1739773344615,0.05153771,2680.9,2680.8,3.73022]
[1739773347434,0.32653771,2680.9,2680.8,4.476277]
[1739773347735,0.32653771,2680.9,2680.8,5.235377]
[1739773349837,0.05153771,2680.9,2680.8,5.235377]
[1739773350043,0.32653771,2680.9,2680.8,5.235377]
[1739773350245,0.5693,2681.4,2681.2,3.72958]
[1739773350537,0.275,2681.3,2681.2,3.72958]
[1739773350741,0.275,2681.3,2681.1,3.7298]
[1739773351125,0.275,2681.3,2681.1,7.4595]
[1739773351472,0.275,2681.3,2681.1,3.7297]
[1739773352224,0.275,2681.3,2681.2,3.72967]
[1739773354376,0.275,2681.3,2681.1,3.7298]
[1739773354577,0.275,2681.3,2681.2,3.72967]
[1739773354930,0.275,2681.3,2681.0,3.72986]
[1739773355143,0.275,2681.3,2680.8,1.505157]
[1739773355440,0.275,2681.3,2681.2,3.72967]
[1739773356123,0.275,2681.3,2681.1,3.72979]
[1739773356323,0.275,2681.3,2681.1,3.72973]
[1739773356649,0.275,2681.3,2681.1,7.45945]
[1739773357051,0.275,2681.3,2681.2,3.72967]
[1739773359448,0.275,2681.3,2681.1,3.72972]
[1739773359648,0.275,2681.3,2681.0,3.72993]
[1739773360054,0.275,2681.3,2681.1,3.72974]
[1739773360630,0.275,2681.3,2681.2,3.72967]
[1739773362243,0.32743648,2681.3,2681.1,3.72974]
[1739773362690,0.32743648,2681.3,2681.1,3.72971]
[1739773363368,0.32743648,2681.3,2681.2,3.72967]
[1739773364175,0.32743648,2681.3,2681.1,3.72971]
[1739773365971,0.32743648,2681.3,2681.2,3.72967]
[1739773366969,0.32743648,2681.3,2681.0,3.72994]
[1739773367169,0.32743648,2681.3,2681.2,3.72967]
[1739773367809,0.32743648,2681.3,2681.1,3.7298]
[1739773368214,0.32743648,2681.3,2680.8,4.48924]
[1739773368563,0.32743648,2681.3,2681.1,3.72975]
[1739773369064,0.32743648,2681.3,2681.2,3.72967]
[1739773370467,0.05243648,2681.3,2681.2,3.72967]
[1739773370612,0.32743648,2681.3,2681.2,4.475616]
[1739773370814,0.275,2681.3,2681.2,4.475616]
[1739773371012,0.32748188,2681.3,2681.2,3.72967]
[1739773372060,0.275,2681.3,2681.2,3.72967]
[1739773372357,0.32754541,2681.3,2681.2,3.72967]
[1739773375270,0.32754541,2681.3,2680.9,3.73]
[1739773375552,0.5693,2681.2,2681.0,3.72994]
[1739773376348,0.5693,2681.2,2681.1,3.72981]
[1739773376549,0.275,2681.3,2681.1,3.72981]
[1739773376755,0.275,2681.3,2681.1,7.45962]
[1739773377053,0.05258172,2681.2,2681.1,7.45962]
[1739773377353,0.05258172,2681.2,2680.9,3.72998]
[1739773377556,0.05258172,2681.1,2681.0,3.72994]
[1739773377853,0.275,2681.3,2681.0,3.72994]
[1739773378014,0.275,2681.3,2681.1,3.72978]
[1739773378213,0.05258172,2681.2,2681.1,3.72978]
[1739773378415,0.275,2681.3,2681.2,3.72967]
[1739773378912,0.32758172,2681.3,2681.2,3.72967]
[1739773379156,0.32758172,2681.3,2681.1,3.72979]
[1739773380248,0.32758172,2681.3,2681.2,3.72967]
[1739773380455,0.32758172,2681.3,2680.9,3.73]
[1739773380752,0.32758172,2681.3,2681.1,3.72969]
[1739773381343,0.32758172,2681.3,2681.0,3.72994]
[1739773381553,0.32758172,2681.3,2681.1,3.7298]
[1739773382054,0.32758172,2681.3,2681.0,3.72995]
[1739773382220,0.32758172,2681.3,2681.2,3.72967]
[1739773383327,0.32758172,2681.3,2681.1,3.72979]
[1739773383720,0.32758172,2681.3,2681.2,3.72967]
[1739773386267,0.32758172,2681.3,2680.8,0.7591]
[1739773386631,0.32758172,2681.3,2681.0,3.72994]
[1739773387159,0.32758172,2681.3,2681.1,3.72981]
[1739773388049,0.32758172,2681.3,2681.1,7.45954]
[1739773388374,0.32758172,2681.3,2681.1,3.72973]
[1739773388663,0.32758172,2681.3,2681.2,3.72967]
[1739773388865,0.32758172,2681.3,2681.1,3.72973]
[1739773389169,0.5693,2681.2,2680.6,3.73045]
[1739773389330,0.5693,2681.2,2679.8,3.73152]
[1739773389331,3.0,2681.1,2680.3,3.73083]
[1739773389641,3.62195432,2681.1,2680.4,3.73064]
[1739773389842,3.62195432,2681.1,2680.5,3.73054]
[1739773390046,3.62195432,2681.1,2680.6,3.73047]
[1739773390252,3.62195432,2681.1,2680.6,7.4609]
[1739773390568,0.62195432,2681.1,2680.9,3.73001]
[1739773390726,0.274,2681.0,2680.9,3.73001]
[1739773391159,0.32620048,2681.0,2680.9,3.73001]
[1739773393128,0.32620048,2681.0,2680.8,3.73021]
[1739773393729,0.32620048,2681.0,2680.8,3.73015]
[1739773394568,0.32620048,2681.0,2680.9,3.73009]
[1739773397340,0.32620048,2681.0,2680.9,4.55694]
[1739773399968,0.05220048,2681.0,2680.9,5.33304]
[1739773400370,0.274,2681.2,2681.1,3.72981]
[1739773400949,5.34,2681.4,2681.3,3.72953]
[1739773401159,0.274,2681.4,2681.1,3.72981]
[1739773401482,0.274,2681.4,2681.3,0.7761]
[1739773402045,0.274,2681.4,2681.3,4.50563]
[1739773402453,0.274,2681.4,2681.2,3.72967]
[1739773402640,0.274,2681.4,2681.3,3.72953]
[1739773404970,0.274,2681.4,2681.3,4.50563]
[1739773405177,0.274,2681.4,2681.3,5.32915]
[1739773405376,6.08314301,2681.8,2681.3,1.59962]
[1739773405543,0.274,2681.7,2681.5,3.72922]
[1739773406557,0.274,2681.7,2681.6,3.72911]
[1739773406758,0.274,2681.7,2681.5,3.72922]
[1739773407171,0.05301735,2681.6,2681.5,3.72922]
[1739773408494,0.32701735,2681.6,2681.5,3.72922]
[1739773410587,0.32701735,2681.6,2681.4,3.72937]
[1739773411526,0.32701735,2681.6,2681.4,7.45869]
[1739773411783,0.32701735,2681.6,2681.4,3.72932]
[1739773413488,0.32701735,2681.6,2681.3,3.72952]
[1739773414852,0.32701735,2681.6,2681.4,3.72928]
[1739773415397,0.32701735,2681.6,2681.3,3.72947]
[1739773415896,0.32701735,2681.6,2681.3,7.45894]
[1739773416098,0.32701735,2681.6,2681.4,3.72939]
[1739773417000,0.32701735,2681.6,2681.3,3.72947]
[1739773418303,0.32701735,2681.6,2681.4,3.72939]
[1739773418901,0.32701735,2681.6,2681.3,3.72945]
[1739773419891,0.32701735,2681.6,2681.3,7.4589]
[1739773420291,0.32701735,2681.6,2681.3,3.72945]
[1739773420493,0.32701735,2681.6,2681.3,7.45891]
[1739773420695,0.32701735,2681.6,2681.4,3.7293]
[1739773422001,0.32701735,2681.6,2681.5,3.72925]
[1739773422191,0.32701735,2681.6,2681.4,3.72938]
[1739773422707,0.32701735,2681.6,2681.5,3.72925]
[1739773424984,0.05301735,2681.6,2681.5,3.72925]
[1739773425189,0.32701735,2681.6,2681.5,3.72925]
[1739773425383,0.274,2681.6,2681.5,3.72925]
[1739773425626,0.32677231,2681.6,2681.5,3.72925]
[1739773431694,0.32677231,2681.6,2681.4,5.46772709]
[1739773432433,0.32677231,2681.6,2681.5,3.72925]
[1739773432620,0.32677231,2681.6,2681.4,9.19703709]
[1739773433234,0.32677231,2681.6,2681.3,3.72952]
[1739773433534,0.5693,2681.5,2681.3,3.72952]
[1739773433835,0.62228102,2681.5,2681.3,3.72952]
[1739773435131,0.62228102,2681.5,2681.4,3.72939]
[1739773435338,5.39298102,2681.5,2681.4,3.72939]
[1739773436236,5.39298102,2681.5,2681.2,1.73834709]
[1739773436440,5.39298102,2681.5,2681.2,5.46792709]
[1739773437305,5.39298102,2681.5,2681.3,3.72951]
[1739773437832,5.39298102,2681.5,2681.2,1.73834709]
[1739773437833,5.39298102,2681.5,2681.2,5.46794709]
[1739773438206,5.39298102,2681.5,2681.3,3.7295]
[1739773438410,5.39298102,2681.5,2681.2,5.46794709]
[1739773439435,5.39298102,2681.5,2681.2,9.19752709]
[1739773439618,5.39298102,2681.5,2681.2,1.73834709]
[1739773439936,5.39298102,2681.5,2681.2,9.19757709]
[1739773440141,5.39298102,2681.5,2681.2,5.46792709]
[1739773441344,0.5693,2681.4,2680.7,3.73034]
[1739773441587,5.9093,2681.4,2680.8,5.46856709]
[1739773441743,5.9093,2681.4,2680.8,1.73834709]
[1739773441909,0.05298102,2681.3,2680.8,1.73834709]
[1739773442242,0.05298102,2681.3,2680.8,5.46854709]
[1739773443011,0.05298102,2681.3,2680.9,3.73007]
[1739773443240,0.05298102,2681.3,2680.8,5.46854709]
[1739773443927,0.05298102,2681.3,2680.8,9.19868709]
[1739773444242,0.05298102,2681.3,2681.0,1.73834709]
[1739773444421,0.274,2681.2,2681.1,4.51651]
[1739773444619,0.05298102,2681.3,2681.1,4.51651]
[1739773444945,5.34,2681.4,2681.1,4.51651]
[1739773444946,0.32659077,2681.2,2681.1,4.51651]
[1739773445127,0.32659077,2681.2,2681.1,5.341147]
[1739773445329,0.32659077,2681.2,2681.1,7.07949409]
[1739773446648,0.32659077,2681.2,2681.1,5.341147]
[1739773456259,0.32659077,2681.2,2681.1,4.51651]
[1739773456759,0.05259077,2681.2,2681.1,8.10167224]
[1739773456962,0.32659077,2681.2,2681.1,8.10167224]
[1739773457123,0.274,2681.2,2681.1,8.10167224]
[1739773457446,0.32692661,2681.2,2681.1,11.10167224]
[1739773458658,0.05292661,2681.2,2681.1,13.13482546]
[1739773458956,0.274,2681.8,2681.7,3.72897]
[1739773459163,5.34,2682.3,2682.1,3.72829]
[1739773459337,5.34,2682.3,2682.0,3.72854]
[1739773459534,5.34,2682.4,2682.3,3.72814]
[1739773459759,5.34,2682.6,2682.5,3.72786]
[1739773459961,5.614,2682.6,2682.5,3.72786]
[1739773460127,5.614,2682.6,2682.4,3.728]
[1739773460542,5.614,2682.6,2682.5,3.72786]
[1739773460950,5.614,2682.6,2682.4,7.45592]
[1739773461154,5.34,2682.6,2682.5,3.72786]
[1739773461371,5.614,2682.6,2682.5,3.72786]
[1739773461569,5.614,2682.6,2682.4,3.72792]
[1739773461768,5.614,2682.6,2682.5,3.72786]
[1739773463176,5.614,2682.6,2682.4,3.728]
[1739773463374,5.614,2682.6,2682.5,3.72786]
[1739773463674,5.614,2682.6,2682.5,4.50506]
[1739773464049,5.34,2683.0,2682.5,4.50506]
[1739773464251,0.274,2682.9,2682.8,3.72744]
[1739773464479,0.274,2682.9,2682.8,4.100184]
[1739773465178,0.274,2682.9,2682.8,4.877384]
[1739773465598,0.274,2682.9,2682.8,7.877384]
[1739773466100,0.274,2683.1,2683.0,3.72709]
[1739773466442,0.32715015,2683.1,2683.0,3.72709]
[1739773467160,0.05315015,2683.1,2683.0,4.8875224]
[1739773467487,5.34,2683.3,2683.2,3.72689]
[1739773467652,0.274,2683.3,2683.1,3.72694]
[1739773467957,0.274,2683.3,2682.8,3.0]
[1739773468141,0.5693,2683.2,2682.8,3.0]
[1739773468794,0.5693,2683.2,2682.8,6.72737]
[1739773468976,0.5693,2683.2,2682.8,3.72737]
[1739773469145,0.5693,2683.2,2682.7,6.72758]
[1739773470569,0.5693,2683.2,2682.9,3.72722]
[1739773470891,5.9093,2683.2,2682.9,3.72722]
[1739773471095,5.9093,2683.2,2682.7,3.0]
[1739773471799,5.9093,2683.2,2682.7,6.72751]
[1739773472007,5.9093,2683.2,2682.8,3.72731]
[1739773472665,5.9093,2683.2,2682.7,6.72751]
[1739773473158,5.9093,2683.2,2682.7,3.72751]
[1739773473895,5.9093,2683.2,2682.8,3.72731]
[1739773474257,0.5693,2683.1,2682.4,3.728]
[1739773474481,0.5693,2682.9,2682.3,3.72804]
[1739773475267,0.5693,2682.9,2682.4,3.72792]
[1739773475467,0.5693,2682.9,2682.2,3.72821]
[1739773475872,0.5693,2682.9,2682.4,3.72799]
[1739773476772,0.5693,2682.9,2682.2,3.72821]
[1739773477262,0.5693,2682.8,2682.2,3.72821]
[1739773477465,0.5693,2682.8,2682.2,7.45642]
[1739773477665,0.5693,2682.8,2682.3,3.72804]
[1739773478082,0.5693,2682.8,2682.2,3.72821]
[1739773478403,0.5693,2682.8,2682.4,3.72797]
[1739773478585,0.5693,2682.8,2682.5,3.72783]
[1739773478787,0.5693,2682.8,2682.4,3.72797]
[1739773479246,0.5693,2682.8,2682.4,7.45589]
[1739773479454,0.5693,2682.8,2682.4,3.72792]
[1739773479852,5.9093,2682.8,2682.4,3.72792]
[1739773480668,5.9093,2682.8,2682.2,4.35816224]
[1739773480818,5.9093,2682.8,2682.4,3.72787]
[1739773481012,5.9093,2682.8,2682.5,3.72775]
[1739773481218,5.9093,2682.8,2682.6,3.72765]
[1739773481219,5.34,2682.8,2682.6,3.72765]
[1739773481518,0.89727844,2683.4,2683.2,3.72677]
[1739773481519,1.46657844,2683.4,2683.2,3.72677]
[1739773481767,0.274,2683.3,2683.0,3.72709]
[1739773482123,0.05180765,2683.2,2683.0,3.72709]
[1739773482439,0.274,2683.3,2683.1,3.727]
[1739773482664,0.274,2683.3,2682.8,3.72735]
[1739773483379,0.274,2683.3,2682.9,3.72727]
[1739773484384,0.274,2683.3,2682.8,3.72735]
[1739773484591,0.274,2683.3,2683.1,3.72703]
[1739773485049,0.274,2683.3,2683.1,3.72695]
[1739773485451,0.274,2683.3,2683.1,3.72692]
[1739773485667,5.34,2683.6,2683.3,3.72663]
[1739773485870,0.274,2683.5,2683.3,3.72663]
[1739773486708,5.34,2683.6,2683.3,3.72667]
[1739773486874,0.274,2683.4,2683.3,3.72667]
[1739773487363,0.274,2683.4,2683.2,3.72688]
[1739773487566,0.274,2683.4,2683.0,4.54706]
[1739773488047,0.274,2683.4,2683.2,3.72688]
[1739773488247,0.274,2683.4,2683.1,3.72702]
[1739773488970,0.274,2683.4,2683.0,4.54706]
[1739773489173,0.274,2683.4,2683.2,3.72686]
[1739773490129,0.274,2683.4,2683.0,4.54704]
[1739773490333,0.274,2683.4,2683.1,3.72696]
[1739773490780,0.274,2683.4,2683.0,5.42753372]
[1739773490975,0.274,2683.4,2683.2,3.72686]
[1739773491245,0.274,2683.4,2683.3,3.72675]
[1739773492682,0.274,2683.4,2683.2,3.72686]
[1739773493182,0.274,2683.4,2683.3,3.72675]
[1739773493990,0.274,2683.4,2683.1,3.72701]
[1739773494163,0.274,2683.4,2683.1,3.72693]
[1739773494346,0.274,2683.4,2683.2,3.72682]
[1739773495270,0.274,2683.4,2683.1,3.72693]
[1739773495574,0.274,2683.4,2683.2,3.72689]
[1739773496400,5.614,2683.6,2683.5,3.72647]
[1739773496701,0.274,2683.6,2683.5,8.13163224]
[1739773496887,0.274,2683.6,2683.5,4.54647]
[1739773498308,0.5693,2684.2,2683.8,3.72595]
[1739773498512,0.274,2683.9,2683.8,3.72595]
[1739773499005,0.32508401,2683.9,2683.8,3.72595]
[1739773499174,0.05108401,2683.9,2683.8,3.72595]
[1739773499376,0.274,2683.9,2683.8,3.72595]
[1739773499576,0.32508401,2683.9,2683.8,3.72595]
[1739773499873,0.32508401,2683.9,2683.8,4.471163]
[1739773504378,0.274,2683.9,2683.8,4.471163]
[1739773512735,5.34,2684.3,2683.8,0.745213]
[1739773513016,0.274,2683.9,2683.8,3.72606]
[1739773515750,5.34,2684.3,2683.9,3.72584]
[1739773515957,1.90140577,2684.4,2684.1,3.58516224]
[1739773515958,0.5693,2684.4,2684.1,3.58516224]
[1739773516113,0.274,2684.2,2684.1,3.72551]
[1739773516894,0.5693,2684.9,2684.3,3.72536]
[1739773517104,5.9093,2685.1,2684.9,3.72452]
[1739773517407,0.274,2685.0,2684.9,3.72452]
[1739773517791,0.274,2685.0,2684.6,0.7571]
[1739773518132,5.34,2685.1,2685.0,3.72439]
[1739773518338,5.614,2685.1,2685.0,3.72439]
[1739773519696,0.5693,2685.4,2685.0,0.744892]
[1739773519897,0.274,2685.3,2685.2,3.72401]
[1739773520228,0.274,2685.3,2685.0,0.7571]
[1739773521605,0.5693,2685.2,2684.4,0.7571]
[1739773521816,0.5693,2685.1,2684.2,4.48251]
[1739773522022,0.5693,2685.0,2684.2,0.7571]
[1739773523007,3.5693,2685.0,2683.6,8.06859224]
[1739773523191,0.5693,2684.7,2683.8,3.72598]
[1739773523917,0.5693,2684.7,2684.1,3.72562]
[1739773524116,0.7482653,2684.5,2684.4,3.72522]
[1739773524324,0.274,2684.5,2684.4,3.72522]
[1739773524901,0.274,2684.5,2684.3,3.72535]
[1739773525130,0.274,2684.5,2684.1,3.72556]
[1739773525831,0.05386836,2684.4,2684.1,3.72556]
[1739773526135,0.274,2684.5,2684.1,3.72556]
[1739773526499,0.05386836,2684.4,2684.1,3.72556]
[1739773527035,0.274,2684.5,2684.1,3.72555]
[1739773527331,1.02599581,2684.5,2684.1,0.74514]
[1739773527531,0.5693,2684.4,2683.5,4.34226224]
[1739773527827,0.62316836,2684.4,2683.5,4.34226224]
[1739773528058,0.62316836,2684.4,2683.7,3.72612]
[1739773528606,0.62316836,2684.4,2683.5,4.34226224]
[1739773528607,5.34,2684.3,2683.5,0.7571]
[1739773528802,5.34,2684.3,2683.3,3.72666]
[1739773528803,5.3937505,2684.3,2683.3,3.72666]
[1739773529014,0.5693,2684.2,2683.2,0.8175]
[1739773529258,0.5693,2684.2,2683.5,3.72634]
[1739773529550,0.0537505,2684.1,2683.5,3.72634]
[1739773529933,0.0537505,2684.1,2683.3,7.45336]
[1739773530247,0.0537505,2684.1,2683.4,3.72657]
[1739773530672,0.0537505,2684.1,2683.4,3.62242117]
[1739773530816,0.0537505,2684.1,2683.7,3.72609]
[1739773531011,0.0537505,2684.1,2683.5,3.72641]
[1739773531216,0.0537505,2684.1,2683.3,8.26028027]
[1739773531515,0.0537505,2684.1,2683.4,3.0]
[1739773532111,0.0537505,2684.1,2683.6,3.72624]
[1739773532722,0.0537505,2684.1,2683.5,3.72643]
[1739773533463,0.0537505,2684.1,2683.4,3.0]
[1739773533631,0.0537505,2684.1,2683.7,7.45223]
[1739773533816,0.0537505,2684.1,2684.0,3.72578]
[1739773534012,0.3277505,2684.1,2684.0,3.72578]
[1739773534366,0.274,2684.1,2684.0,3.72578]
[1739773534571,5.34,2684.3,2684.1,3.7255]
[1739773534714,0.32635416,2684.1,2684.0,3.72578]
[1739773534914,0.5693,2684.5,2684.0,0.745168]
[1739773535135,0.32635416,2684.4,2684.3,3.72536]
[1739773535340,0.05235416,2684.4,2684.3,3.72536]
[1739773535574,0.274,2684.5,2684.4,3.72522]
[1739773536110,0.5693,2684.9,2684.7,3.72471]
[1739773536253,0.5693,2685.2,2684.4,3.0]
[1739773536455,0.5693,2685.2,2684.3,3.58516224]
[1739773536456,0.274,2685.1,2685.0,3.72439]
[1739773537004,0.274,2685.1,2684.9,3.72452]
[1739773537510,0.274,2685.1,2685.0,3.72439]
[1739773537710,1.30120485,2685.6,2685.2,3.724]
[1739773538002,0.274,2685.5,2685.2,3.724]
[1739773538367,0.274,2685.5,2685.0,3.72432]
[1739773538570,0.274,2685.5,2685.1,3.72424]
[1739773538987,0.274,2685.5,2685.1,7.44834]
[1739773539158,0.274,2685.5,2685.2,3.72403]
[1739773539871,0.274,2685.5,2685.0,3.72433]
[1739773539872,0.274,2685.5,2685.1,3.72424]
[1739773540075,0.274,2685.5,2685.2,3.72411]
[1739773540274,0.274,2685.5,2685.0,3.72427]
[1739773540656,0.274,2685.5,2684.9,3.72443]
[1739773540892,0.274,2685.5,2685.1,3.72424]
[1739773541097,0.274,2685.5,2684.9,8.275591]
[1739773541298,0.274,2685.5,2684.9,4.551091]
[1739773541616,0.274,2685.5,2685.1,3.72424]
[1739773541951,0.274,2685.5,2684.9,7.44888]
[1739773542233,0.05351459,2685.4,2684.9,3.72444]
[1739773542449,0.05351459,2685.4,2684.9,7.44888]
[1739773542648,0.05351459,2685.4,2685.0,3.72437]
[1739773544805,0.05351459,2685.4,2685.0,3.72429]
[1739773545361,0.05351459,2685.4,2684.8,3.72459]
[1739773545560,0.05351459,2685.4,2684.8,3.72455]
[1739773545698,0.05351459,2685.4,2684.9,3.7244]
[1739773545898,0.05351459,2685.4,2685.0,3.72438]
[1739773546912,0.05351459,2685.4,2685.1,3.72425]
[1739773547115,0.274,2685.3,2685.1,3.72425]
[1739773547516,0.05445751,2685.2,2685.1,3.72425]
[1739773547930,0.274,2685.3,2685.2,3.72411]
[1739773549358,0.274,2685.3,2685.0,0.744895]
[1739773549679,0.274,2685.3,2685.0,3.72428]
[1739773549812,0.274,2685.3,2685.2,3.72411]
[1739773551138,0.274,2685.3,2685.2,4.48171]
[1739773551440,5.34,2685.5,2685.4,3.72384]
[1739773551675,5.614,2685.5,2685.4,3.72384]
[1739773552335,0.5693,2685.6,2685.5,3.7237]
[1739773552688,0.274,2685.6,2685.5,3.7237]
[1739773556670,0.274,2685.6,2685.4,4.544361]
[1739773556869,0.274,2685.6,2685.4,8.268131]
[1739773557269,0.05494682,2685.5,2685.4,8.268131]
[1739773558607,0.05494682,2685.5,2685.4,4.544311]
[1739773559413,0.05494682,2685.5,2685.2,3.7241]
[1739773559585,0.5693,2685.4,2685.2,3.7241]
[1739773560032,0.05494682,2685.3,2685.2,3.7241]
[1739773560335,0.05494682,2685.3,2685.0,4.52078]
[1739773560538,0.05494682,2685.3,2685.0,3.72428]
[1739773560747,0.05494682,2685.3,2685.0,4.096708]
[1739773561246,0.05494682,2685.3,2684.7,3.7965]
[1739773561449,0.05494682,2685.3,2684.7,3.7248]
[1739773561591,0.05494682,2685.3,2685.0,3.72435]
[1739773561790,0.05494682,2685.3,2685.0,7.44866]
[1739773562028,0.05494682,2685.3,2685.0,3.72431]
[1739773562547,0.05494682,2685.3,2685.1,3.72413]
[1739773562756,0.05494682,2685.3,2685.2,3.72411]
[1739773563047,0.274,2685.6,2685.2,3.72411]
[1739773563048,0.8433,2685.6,2685.2,3.72411]
[1739773563193,0.05503744,2685.3,2685.2,3.72411]
[1739773563601,0.8433,2685.6,2685.2,3.72411]
[1739773563828,0.8433,2685.6,2685.4,3.72381]
[1739773564038,0.8433,2685.6,2685.2,3.72404]
[1739773564236,0.8433,2685.6,2685.2,4.1336871]
[1739773564237,0.5693,2685.6,2685.2,4.1336871]
[1739773564545,0.273,2685.5,2685.1,3.72425]
[1739773565554,0.273,2685.5,2685.2,3.72409]
[1739773565689,0.273,2685.5,2685.3,3.72384]
[1739773566055,0.273,2685.5,2685.2,3.72409]
[1739773566980,0.273,2685.5,2685.1,3.72424]
[1739773567152,0.5693,2685.4,2684.8,3.72456]
[1739773567295,0.5693,2685.4,2684.9,3.7245]
[1739773567932,0.5693,2685.4,2684.9,3.72453]
[1739773568138,0.5693,2685.4,2684.8,3.72456]
[1739773568635,0.5693,2685.4,2684.9,3.7245]
[1739773569027,0.5693,2685.4,2685.0,3.72437]
[1739773569228,0.5693,2685.4,2685.0,3.72431]
[1739773569798,0.5693,2685.4,2684.8,7.44911]
[1739773570029,0.5693,2685.4,2684.8,8.36080223]
[1739773570300,0.5693,2685.4,2684.9,3.72451]
[1739773570701,0.5693,2685.4,2685.0,3.72439]
[1739773570928,0.273,2685.3,2685.1,3.72417]
[1739773571103,0.273,2685.3,2685.1,3.72416]
[1739773571304,0.273,2685.3,2685.2,0.372416]
[1739773572857,0.273,2685.3,2685.2,4.096526]
[1739773573346,0.273,2685.3,2685.2,0.372416]
[1739773573564,0.273,2685.3,2685.2,4.096526]
[1739773577097,0.273,2685.4,2685.2,4.096526]
[1739773577256,0.05491058,2685.3,2685.2,4.096526]
[1739773577438,0.273,2685.4,2685.2,4.096526]
[1739773577641,0.05510084,2685.3,2685.2,4.096526]
[1739773577838,0.273,2685.4,2685.2,4.096526]
[1739773578054,0.05510084,2685.3,2685.2,4.096526]
[1739773578260,0.273,2685.4,2685.2,0.372416]
[1739773578412,0.05510084,2685.3,2685.2,0.372416]
[1739773578763,0.273,2685.4,2685.2,0.372416]
[1739773579059,0.05510084,2685.3,2685.2,0.372416]